bitfinex/quotes_ETHUSD_20250708
["timestamp","ask_amount","ask_price","bid_price","bid_amount"]
[1751991345901,0.002,2564.9,2564.8,15.87252953]
[1751991347944,0.002,2564.9,2564.8,0.1944]
[1751991348247,0.002,2564.9,2564.5,2.32871309]
[1751991348248,0.002,2564.9,2564.5,3.89933289]
[1751991348820,3.90079523,2564.9,2564.5,3.89933289]
[1751991349018,0.002,2564.9,2564.5,3.89933289]
[1751991349221,0.002,2564.9,2564.6,3.89923134]
[1751991349424,0.002,2564.9,2564.7,3.89907324]
[1751991349621,0.002,2564.9,2564.8,4.72302887]
[1751991354859,0.002,2564.9,2564.8,4.68403948]
[1751991355024,0.002,2564.9,2564.7,0.7798341]
[1751991355230,0.002,2564.9,2564.8,3.93792887]
[1751991357130,0.002,2564.9,2564.8,3.93892887]
[1751991357317,0.002,2564.9,2564.8,5.88000429]
[1751991358255,0.002,2564.9,2564.8,6.07440429]
[1751991360442,0.002,2564.9,2564.8,6.0354149]
[1751991360972,0.002,2564.9,2564.8,2.13647542]
[1751991361186,4.68218747,2564.9,2564.8,0.001]
[1751991361384,0.82239108,2564.9,2564.8,0.001]
[1751991361552,4.72117855,2564.9,2564.8,0.001]
[1751991363055,5.27117855,2564.9,2564.8,0.001]
[1751991363253,6.18816045,2564.9,2564.8,0.001]
[1751991364267,16.18816045,2564.9,2564.8,0.001]
[1751991364463,16.14916937,2564.9,2564.8,0.001]
[1751991372521,0.002,2564.9,2564.8,0.001]
[1751991372678,3.93977855,2564.9,2564.8,0.001]
[1751991374110,0.002,2564.9,2564.8,0.001]
[1751991374404,3.90078747,2564.9,2564.8,0.001]
[1751991374908,4.45078747,2564.9,2564.8,0.001]
[1751991375208,6.2414833,2564.9,2564.8,0.001]
[1751991379996,14.44939559,2564.5,2564.4,1e-08]
[1751991380200,22.0464764,2564.5,2564.4,1e-08]
[1751991381730,26.0464764,2564.5,2564.4,1e-08]
[1751991381928,26.86752809,2564.5,2564.4,1e-08]
[1751991382923,20.04654728,2564.5,2564.4,1e-08]
[1751991383497,20.33849991,2564.5,2564.4,1e-08]
[1751991384025,15.49654728,2564.5,2564.4,1e-08]
[1751991384230,14.67549559,2564.5,2564.4,1e-08]
[1751991384428,15.22549559,2564.5,2564.4,1e-08]
[1751991385426,15.51449092,2564.5,2564.4,1e-08]
[1751991389418,15.22549559,2564.5,2564.4,1e-08]
[1751991396738,15.51931521,2564.5,2564.4,1e-08]
[1751991397051,23.44931521,2564.5,2564.4,1e-08]
[1751991397711,27.44931521,2564.5,2564.4,1e-08]
[1751991398512,27.64859221,2564.5,2564.4,1e-08]
[1751991399652,27.44931521,2564.5,2564.4,1e-08]
[1751991401631,23.44931521,2564.5,2564.4,1e-08]
[1751991401834,13.15549559,2564.5,2564.4,1e-08]
[1751991402165,14.44939559,2564.5,2564.4,1e-08]
[1751991402570,4.44939559,2564.5,2564.4,1e-08]
[1751991402773,4.48838667,2564.5,2564.4,1e-08]
[1751991402951,14.48838667,2564.5,2564.4,1e-08]
[1751991403149,14.44939559,2564.5,2564.4,1e-08]
[1751991411162,14.64379559,2564.5,2564.4,1e-08]
[1751991421092,15.41499559,2564.5,2564.4,1e-08]
[1751991421603,15.70866075,2564.5,2564.4,1e-08]
[1751991422112,18.0416373,2564.5,2564.4,1e-08]
[1751991422483,25.9716373,2564.5,2564.4,1e-08]
[1751991422806,27.63866075,2564.5,2564.4,1e-08]
[1751991423010,1.3573,2564.0,2563.9,1e-08]
[1751991423313,22.11956725,2564.0,2563.9,1e-08]
[1751991423509,22.08057617,2564.0,2563.9,1e-08]
[1751991424884,26.08057617,2564.0,2563.9,1e-08]
[1751991425208,26.08057617,2564.0,2563.4,0.001]
[1751991425209,4.45061239,2563.7,2563.6,1e-08]
[1751991425409,14.48960347,2563.7,2563.6,1e-08]
[1751991425582,3.90061239,2563.7,2563.6,1e-08]
[1751991425779,3.93960347,2563.7,2563.6,1e-08]
[1751991425980,0.03899108,2563.7,2563.6,1e-08]
[1751991426186,3.93952329,2563.8,2563.6,1e-08]
[1751991426408,11.93,2564.0,2563.6,1e-08]
[1751991426597,3.90017106,2564.0,2563.7,0.8058]
[1751991426794,3.90033516,2563.9,2563.7,0.8058]
[1751991427208,3.93916214,2564.0,2563.7,0.8058]
[1751991427209,0.03899108,2564.0,2563.7,0.8058]
[1751991427413,3.90001229,2564.1,2563.8,0.8102]
[1751991427715,3.9001672,2564.0,2563.8,0.8102]
[1751991428014,3.93905399,2564.1,2563.8,0.8102]
[1751991428209,3.93905399,2564.1,2563.8,1.28128894]
[1751991428534,0.03899108,2564.1,2563.8,5.1817369]
[1751991428727,3.93884809,2564.2,2563.8,5.1817369]
[1751991428927,3.93884809,2564.2,2563.8,1.28128894]
[1751991429329,3.90004542,2564.1,2563.8,1.28128894]
[1751991430323,3.93891849,2564.2,2563.8,1.28128894]
[1751991430627,3.93892707,2564.2,2563.8,1.28128894]
[1751991432015,3.90000993,2564.1,2563.8,1.28128894]
[1751991432215,3.93917451,2564.0,2563.8,1.28128894]
[1751991432455,3.93917451,2564.0,2563.8,0.8102]
[1751991432839,0.03899108,2564.0,2563.8,0.8102]
[1751991433146,3.90030812,2563.9,2563.8,0.8102]
[1751991434203,3.93922292,2564.0,2563.8,0.8102]
[1751991434403,3.93922306,2564.0,2563.8,0.8102]
[1751991435637,3.93916702,2564.0,2563.8,0.8102]
[1751991436540,0.1944,2564.1,2563.8,0.8102]
[1751991436836,3.93894674,2564.2,2563.8,1.30073133]
[1751991437010,3.93894674,2564.2,2563.9,0.1944]
[1751991437706,3.90004106,2564.1,2563.9,0.1944]
[1751991438726,3.93890909,2564.2,2563.9,0.1944]
[1751991438929,3.93890909,2564.2,2563.9,1.12791718]
[1751991439136,3.90003452,2564.1,2563.9,0.1944]
[1751991442252,3.90003452,2564.1,2563.9,0.1952]
[1751991442430,3.90203452,2564.1,2563.9,0.1952]
[1751991443246,0.002,2564.1,2563.9,0.1952]
[1751991444040,3.90200813,2564.1,2563.9,0.1952]
[1751991445356,0.002,2564.1,2563.9,0.1952]
[1751991445655,0.002,2564.1,2563.9,0.73485291]
[1751991446062,0.002,2564.1,2564.0,4.73595756]
[1751991446355,0.002,2564.1,2564.0,4.93035756]
[1751991447733,0.002,2564.1,2564.0,4.891356]
[1751991448651,0.002,2564.1,2564.0,0.9912]
[1751991448951,3.9020039,2564.1,2563.9,0.1952]
[1751991449155,0.002,2564.1,2563.9,0.1952]
[1751991453062,0.002,2564.1,2563.9,4.09549581]
[1751991453260,0.002,2564.1,2564.0,3.900156]
[1751991454362,0.002,2564.1,2563.9,5.02348847]
[1751991455762,0.002,2564.1,2564.0,3.900156]
[1751991456428,0.002,2564.1,2564.0,4.95145756]
[1751991458463,0.002,2564.1,2564.0,14.95145756]
[1751991458628,0.002,2564.1,2564.0,17.8057924]
[1751991459781,1e-08,2564.1,2564.0,17.8057924]
[1751991459946,1e-08,2564.1,2564.0,17.99971232]
[1751991460469,1e-08,2564.1,2564.0,20.32842541]
[1751991464048,1e-08,2564.1,2564.0,20.13450549]
[1751991465682,1e-08,2564.1,2564.0,17.8057924]
[1751991466053,1e-08,2564.1,2564.0,18.54631022]
[1751991466248,1e-08,2564.9,2564.8,3.89893948]
[1751991466449,1e-08,2564.9,2564.8,21.78508789]
[1751991466782,0.002,2565.2,2564.8,21.78508789]
[1751991466783,1e-08,2565.2,2565.1,4.71018348]
[1751991467079,1e-08,2565.2,2565.1,11.76762733]
[1751991467279,1e-08,2565.2,2565.1,11.7286425]
[1751991467479,1e-08,2565.2,2565.1,14.68124594]
[1751991468583,1e-08,2565.2,2565.1,17.85718692]
[1751991468787,1e-08,2565.2,2565.1,0.1944]
[1751991469971,1e-08,2565.2,2564.9,10.0]
[1751991470162,1e-08,2565.2,2565.0,0.1944]
[1751991470163,3.89848348,2565.1,2565.0,0.1944]
[1751991470904,3.89848348,2565.1,2564.7,10.0]
[1751991471061,3.89865341,2565.0,2564.8,0.1944]
[1751991472162,3.89878747,2564.9,2564.8,0.1944]
[1751991472363,4.6706186,2565.0,2564.8,0.1944]
[1751991472661,0.7719,2565.0,2564.8,0.1944]
[1751991473492,3.89878747,2564.9,2564.8,0.1944]
[1751991473673,0.7719,2565.0,2564.8,0.1944]
[1751991473674,4.67059929,2565.0,2564.8,0.1944]
[1751991474079,3.89878747,2564.9,2564.8,0.1944]
[1751991474422,3.8993473,2564.6,2564.5,0.1944]
[1751991475284,3.89916516,2564.7,2564.5,0.1944]
[1751991476026,3.89943078,2564.5,2563.9,2.33193701]
[1751991476191,4.92073193,2564.6,2564.1,0.1944]
[1751991476508,3.89946021,2564.5,2564.1,10.1944]
[1751991476684,3.89946021,2564.5,2564.1,0.1944]
[1751991476873,3.89946021,2564.5,2564.1,10.1944]
[1751991477069,3.89946021,2564.5,2564.1,11.99785348]
[1751991477272,0.9824,2564.6,2564.2,3.89979512]
[1751991477474,3.89926612,2564.6,2564.4,0.1944]
[1751991478276,3.89925419,2564.6,2564.4,0.1944]
[1751991478808,4.71786366,2564.7,2564.4,0.1944]
[1751991479473,0.81869108,2564.7,2564.4,0.1944]
[1751991480383,0.7927,2565.0,2564.4,3.89952212]
[1751991480581,0.03899108,2564.9,2564.6,0.1944]
[1751991480909,0.7927,2565.0,2564.6,0.1944]
[1751991481074,1e-08,2565.2,2564.5,0.03899395]
[1751991481277,0.03899109,2565.2,2564.8,4.09318757]
[1751991481904,3.9373382,2565.2,2564.8,0.1944]
[1751991482288,0.03899109,2565.2,2564.8,4.09331154]
[1751991482507,1e-08,2565.2,2564.8,4.89254458]
[1751991482686,3.89833359,2565.2,2564.8,4.89254458]
[1751991482902,3.93732467,2565.2,2564.8,4.89254458]
[1751991483120,0.03899109,2565.2,2564.8,4.89254458]
[1751991483418,3.93732879,2565.2,2564.8,4.89254458]
[1751991484410,0.03899109,2565.2,2564.8,4.89254458]
[1751991484612,3.89835025,2565.2,2564.8,0.99363304]
[1751991484796,3.89835025,2565.2,2564.8,0.1944]
[1751991484797,3.9375477,2565.1,2564.8,0.1944]
[1751991485009,3.89867839,2565.0,2564.8,0.1944]
[1751991485219,3.93755299,2565.1,2564.8,0.1944]
[1751991485417,0.03899108,2565.1,2564.8,0.1944]
[1751991485607,3.93748332,2565.1,2564.8,0.1944]
[1751991487020,3.89868967,2565.0,2564.8,0.1944]
[1751991487487,3.93755299,2565.1,2564.8,0.1944]
[1751991488106,0.03899108,2565.1,2564.8,0.1944]
[1751991488498,0.03899108,2565.1,2564.8,4.09330612]
[1751991488853,0.03899109,2565.2,2564.8,4.09330612]
[1751991489133,3.93732514,2565.2,2564.8,0.1944]
[1751991489306,3.8984842,2565.1,2564.8,0.1944]
[1751991489498,3.93747528,2565.1,2564.8,0.1944]
[1751991489826,0.03899108,2565.1,2564.8,0.1944]
[1751991490200,3.89868167,2565.0,2564.8,0.1944]
[1751991490400,3.93756225,2565.1,2564.8,0.1944]
[1751991490931,0.03899108,2565.1,2564.8,0.1944]
[1751991491123,3.93756397,2565.1,2564.8,0.1944]
[1751991491534,3.89869861,2565.0,2564.8,0.1944]
[1751991491735,3.93755428,2565.1,2564.6,3.89915013]
[1751991491901,4.13195428,2565.1,2564.6,4.09355013]
[1751991492101,3.89865319,2565.0,2564.6,4.09355013]
[1751991492602,3.93764427,2565.0,2564.6,4.09355013]
[1751991492797,0.03899108,2565.0,2564.7,3.89909046]
[1751991493125,0.03899108,2565.0,2564.6,4.0935779]
[1751991493623,3.93764823,2565.0,2564.6,0.1944]
[1751991493800,0.7837,2564.9,2564.6,0.1944]
[1751991494198,4.68257776,2564.9,2564.6,0.1944]
[1751991494428,0.03899108,2564.8,2564.6,0.1944]
[1751991494629,4.72156884,2564.9,2564.6,0.1944]
[1751991494831,0.82269108,2564.9,2564.6,0.1944]
[1751991495221,0.82269108,2564.9,2564.6,4.093626]
[1751991495829,4.72157364,2564.9,2564.6,0.1944]
[1751991496035,0.47215736,2564.8,2564.3,13.89965358]
[1751991496204,3.89893948,2564.8,2564.4,4.09393479]
[1751991496409,4.91591668,2564.9,2564.5,3.89938141]
[1751991496608,4.91591668,2564.9,2564.4,4.09386273]
[1751991496808,4.91591668,2564.9,2564.5,3.89938609]
[1751991497220,1.01709108,2564.9,2564.4,2.22686392]
[1751991497421,4.7025959,2565.1,2564.6,3.89916606]
[1751991497624,4.93598698,2565.1,2564.6,4.09356606]
[1751991498022,3.89880257,2564.9,2564.6,0.1944]
[1751991498221,0.03899108,2564.9,2564.6,0.1944]
[1751991498424,3.93784026,2564.9,2564.6,0.1944]
[1751991498621,0.03899108,2564.9,2564.6,0.1944]
[1751991498819,3.89885341,2564.9,2564.4,3.89945796]
[1751991499026,0.03899108,2564.8,2564.4,4.09385796]
[1751991499339,3.9379345,2564.8,2564.4,2.30261897]
[1751991499540,3.89894342,2564.8,2564.4,2.30261897]
[1751991500240,3.89911242,2564.7,2564.4,2.30261897]
[1751991500440,4.66431242,2564.7,2564.4,2.30261897]
[1751991500846,3.89924789,2564.6,2564.4,0.1944]
[1751991501052,4.70337475,2564.7,2564.4,0.1944]
[1751991501352,0.7652,2564.7,2564.4,0.1944]
[1751991502541,3.89910818,2564.7,2564.4,0.1944]
[1751991502946,3.93801289,2564.8,2564.4,0.1944]
[1751991503510,3.93801289,2564.8,2564.4,4.09392425]
[1751991503714,3.93801289,2564.8,2564.4,0.1944]
[1751991504055,0.03899108,2564.8,2564.5,3.89927812]
[1751991504352,3.89880105,2564.9,2564.6,0.1944]
[1751991504541,0.03899108,2564.9,2564.6,0.1944]
[1751991504743,3.89894263,2564.8,2564.6,0.1944]
[1751991505043,3.93785896,2564.9,2564.4,4.93195542]
[1751991505244,4.13225896,2564.9,2564.5,0.1944]
[1751991505954,0.23339108,2564.9,2564.5,1.41189864]
[1751991506151,0.1944,2565.1,2564.7,3.8990126]
[1751991506351,4.72648608,2565.2,2564.6,4.65548816]
[1751991506553,4.72648608,2565.2,2564.9,0.1944]
[1751991506925,0.82809109,2565.2,2564.9,0.1944]
[1751991507239,0.82809109,2565.2,2564.9,4.0931397]
[1751991507434,3.9373971,2565.2,2564.9,0.1944]
[1751991507750,0.03899109,2565.2,2564.9,0.1944]
[1751991508051,3.93745378,2565.2,2564.9,0.1944]
[1751991508738,0.03899109,2565.2,2564.9,4.09316956]
[1751991508940,1e-08,2565.2,2564.9,0.1944]
[1751991509139,3.89833654,2565.2,2564.9,0.1944]
[1751991509858,3.89851594,2565.1,2564.9,0.1944]
[1751991510156,3.89842206,2565.2,2564.9,0.1944]
[1751991510655,3.89863547,2565.0,2564.9,0.1944]
[1751991510843,3.89903974,2564.8,2564.4,12.33113701]
[1751991511021,3.89909313,2564.7,2564.5,0.1944]
[1751991511225,3.89901039,2564.8,2564.5,0.1944]
[1751991512459,4.13227057,2564.9,2564.5,0.1944]
[1751991512754,4.13227057,2564.9,2564.5,4.09378926]
[1751991512937,4.13227057,2564.9,2564.5,6.12624471]
[1751991513526,4.13227057,2564.9,2564.5,2.22685545]
[1751991514138,4.13227057,2564.9,2564.5,6.12620794]
[1751991514341,0.23339108,2564.9,2564.5,6.12620794]
[1751991514629,4.13218363,2564.9,2564.5,2.22685545]
[1751991515363,3.89894473,2564.8,2564.5,2.22685545]
[1751991515733,4.13224673,2564.9,2564.5,2.22685545]
[1751991515961,3.89895542,2564.8,2564.5,2.22685545]
[1751991516162,3.89895542,2564.8,2564.5,0.1944]
[1751991516460,3.89948124,2564.5,2564.2,2.52553701]
[1751991516660,4.89262776,2564.6,2564.2,2.52553701]
[1751991516868,4.93161884,2564.6,2564.2,2.52553701]
[1751991517648,1.03229108,2564.6,2564.2,6.42533494]
[1751991517960,3.89888782,2564.9,2564.4,4.6693731]
[1751991518266,3.89895761,2564.8,2564.4,4.8637731]
[1751991518469,3.93808437,2564.7,2564.4,0.1944]
[1751991520112,3.89947062,2564.5,2564.1,10.7795]
[1751991520295,4.67183477,2564.6,2564.2,0.1944]
[1751991520603,3.89939993,2564.5,2564.2,2.07179854]
[1751991520753,3.8993065,2564.6,2564.2,2.07179854]
[1751991521160,3.8993065,2564.6,2564.2,5.97164388]
[1751991521460,3.8993065,2564.6,2564.2,2.07179854]
[1751991521673,3.8993065,2564.6,2564.2,5.97164753]
[1751991521855,3.93829758,2564.6,2564.2,5.97164753]
[1751991522196,3.93829758,2564.6,2564.2,2.07179854]
[1751991522992,3.93829758,2564.6,2564.2,5.97164273]
[1751991523286,4.09356203,2564.7,2564.3,3.89969185]
[1751991523486,4.13255311,2564.7,2564.3,3.89969185]
[1751991525186,3.89925509,2564.6,2564.2,5.9715591]
[1751991525392,3.93839136,2564.5,2564.2,2.07179854]
[1751991525590,0.7712,2564.4,2563.9,3.12273701]
[1751991525763,3.93882713,2564.3,2564.0,0.1944]
[1751991526086,3.8998645,2564.2,2563.9,3.12273701]
[1751991526487,3.900156,2564.0,2563.9,2.33193701]
[1751991526790,3.900156,2564.0,2563.9,0.0008]
[1751991527657,0.03899108,2564.1,2563.9,0.0008]
[1751991527888,3.90003407,2564.1,2563.9,0.0008]
[1751991528259,3.900156,2564.0,2563.9,0.0008]
[1751991528592,6.23866519,2564.0,2563.9,0.0008]
[1751991528777,6.19967411,2564.0,2563.9,0.0008]
[1751991529264,6.23866519,2564.0,2563.9,0.0008]
[1751991529709,5.68866519,2564.0,2563.9,0.0008]
[1751991529885,6.81823235,2564.5,2564.0,3.90009222]
[1751991529886,3.89946542,2564.5,2564.0,3.90009222]
[1751991530201,3.89923812,2564.7,2563.9,3.90110812]
[1751991530202,3.89912104,2564.7,2564.3,6.81823235]
[1751991530365,4.09352104,2564.7,2564.3,0.1944]
[1751991530696,3.93825336,2564.6,2564.3,1.75853911]
[1751991530891,0.03899108,2564.6,2564.3,0.1944]
[1751991532582,3.93824712,2564.6,2564.3,0.1944]
[1751991532984,0.03899108,2564.6,2564.3,0.1944]
[1751991533184,3.93823663,2564.6,2564.3,0.1944]
[1751991533873,3.89941717,2564.5,2564.3,0.1944]
[1751991534073,3.93831786,2564.6,2564.3,0.1944]
[1751991534384,0.1944,2564.7,2564.3,4.09407234]
[1751991534694,0.03899108,2564.8,2564.5,6.81823235]
[1751991534885,0.002,2564.9,2564.5,7.76333235]
[1751991534886,4.0952305,2564.9,2564.5,7.76333235]
[1751991535061,0.1964,2564.9,2564.5,4.84445959]
[1751991535261,0.03899108,2564.8,2564.5,0.9451]
[1751991535977,0.1964,2564.9,2564.5,0.9451]
[1751991536600,0.1964,2564.9,2564.5,5.4088429]
[1751991536809,0.002,2564.9,2564.6,0.03899243]
[1751991537103,0.002,2564.9,2564.7,0.1944]
[1751991537308,0.002,2564.9,2564.7,4.09348058]
[1751991537606,0.002,2564.9,2564.8,3.89893948]
[1751991537894,0.002,2564.9,2564.8,5.72114071]
[1751991538193,0.002,2564.9,2564.8,16.52114071]
[1751991538383,0.002,2564.9,2564.8,15.68215132]
[1751991539311,0.002,2564.9,2564.8,15.97911231]
[1751991539612,0.002,2564.9,2564.8,15.68215132]
[1751991539897,0.002,2564.9,2564.8,18.01368432]
[1751991540871,0.002,2564.9,2564.8,15.68215132]
[1751991541271,0.002,2564.9,2564.8,18.01243698]
[1751991542603,0.002,2564.9,2564.8,15.68215132]
[1751991542973,0.002,2564.9,2564.8,16.77399274]
[1751991543300,0.002,2564.9,2564.8,19.10251144]
[1751991543597,1e-08,2564.9,2564.8,19.10251144]
[1751991543807,1e-08,2564.9,2564.8,16.77399274]
[1751991544168,1e-08,2564.9,2564.8,19.10163238]
[1751991545981,1e-08,2564.9,2564.8,19.65163238]
[1751991546188,1e-08,2564.9,2564.8,17.32399274]
[1751991546385,1e-08,2564.9,2564.8,20.82069826]
[1751991547133,0.002,2565.6,2564.8,22.01399274]
[1751991547282,0.002,2566.3,2564.8,22.01399274]
[1751991547283,0.002,2566.3,2566.2,3.8968124]
[1751991547614,0.0722728,2566.4,2566.3,13.89666056]
[1751991548126,0.002,2566.8,2566.7,14.69205329]
[1751991548412,0.002,2566.8,2566.7,14.88645329]
[1751991548618,0.002,2566.8,2566.7,18.21727583]
[1751991548943,1e-08,2566.8,2566.7,18.21727583]
[1751991555942,1e-08,2566.8,2566.7,17.42127583]
[1751991556805,1e-08,2566.8,2566.7,17.99327583]
[1751991566809,1e-08,2566.8,2566.7,18.18767583]
[1751991572539,1e-08,2566.8,2566.7,17.42127583]
[1751991573328,1e-08,2566.8,2566.7,14.09045329]
[1751991573725,1e-08,2566.8,2566.7,4.09045329]
[1751991574025,1e-08,2566.8,2566.7,4.12941382]
[1751991577154,1e-08,2566.8,2566.7,6.45274167]
[1751991580260,1e-08,2566.8,2566.7,4.12941382]
[1751991581060,1e-08,2566.8,2566.7,6.45274167]
[1751991581248,1e-08,2566.8,2566.7,4.12941382]
[1751991581759,1e-08,2566.8,2566.7,16.2667055]
[1751991581922,1e-08,2566.8,2566.7,16.22774497]
[1751991584365,1e-08,2566.8,2566.7,18.97619673]
[1751991593074,1e-08,2566.8,2566.7,8.97619673]
[1751991593239,0.79890001,2566.8,2566.7,2.52788456]
[1751991593439,0.83789109,2566.8,2566.7,2.33348456]
[1751991593864,0.83789109,2566.8,2566.6,0.001]
[1751991594170,1.22897145,2566.7,2566.6,0.001]
[1751991595046,0.7556,2566.7,2566.6,3.89720509]
[1751991595939,1e-08,2566.8,2566.7,3.89605329]
[1751991596873,1e-08,2566.8,2566.7,3.93501382]
[1751991601963,1e-08,2566.8,2566.7,13.93501382]
[1751991602163,1e-08,2566.8,2566.7,13.89605329]
[1751991602469,1e-08,2566.8,2566.7,16.16103299]
[1751991610492,1e-08,2567.5,2567.4,4.66159104]
[1751991610696,1e-08,2567.5,2567.4,25.52417764]
[1751991610897,1e-08,2567.5,2567.4,21.65469062]
[1751991611246,1e-08,2567.5,2567.4,21.94158193]
[1751991611453,1e-08,2567.5,2567.4,24.99130538]
[1751991612154,0.23339108,2568.7,2568.4,3.89347453]
[1751991612155,0.1944,2568.7,2568.4,3.89347453]
[1751991612485,0.0722728,2568.9,2568.8,3.89286826]
[1751991612783,0.11126388,2568.9,2568.3,2.32392351]
[1751991612983,0.7616,2568.8,2568.3,3.89362613]
[1751991613190,0.51555607,2568.7,2568.3,3.89362613]
[1751991613911,3.89358984,2568.4,2567.9,6.21808729]
[1751991614071,0.80059108,2568.3,2567.7,3.89441992]
[1751991614257,4.69426842,2568.3,2567.6,6.21854285]
[1751991614600,0.7616,2568.2,2567.5,2.32392351]
[1751991614885,0.03899108,2568.1,2567.7,10.0]
[1751991615489,3.93294393,2568.1,2567.5,13.89476259]
[1751991616080,3.89408099,2568.0,2567.3,2.32392351]
[1751991616275,4.67942374,2567.8,2567.1,6.2193529]
[1751991616493,0.03899108,2567.7,2567.1,6.21927579]
[1751991616783,3.93360932,2567.7,2567.2,10.0]
[1751991616957,3.89461824,2567.7,2567.2,10.0]
[1751991617158,0.785,2567.8,2567.4,3.89498141]
[1751991617483,0.785,2567.8,2567.4,3.89496779]
[1751991618061,0.785,2567.8,2567.4,3.89498977]
[1751991618286,0.785,2567.8,2567.5,0.03894839]
[1751991618584,0.785,2567.8,2567.4,3.89499104]
[1751991618784,0.785,2567.8,2567.5,0.03894839]
[1751991619386,0.785,2567.8,2567.5,0.82185494]
[1751991619584,0.785,2567.8,2567.5,4.71661295]
[1751991620086,3.93297754,2568.1,2567.6,3.89468764]
[1751991620087,0.7685,2568.1,2567.6,3.89468764]
[1751991620291,0.7685,2568.1,2567.9,3.89421575]
[1751991620498,0.0722728,2568.9,2568.1,3.89386281]
[1751991620499,0.7685,2568.4,2568.1,3.89386281]
[1751991620670,0.8227,2568.7,2568.2,3.93268652]
[1751991620871,0.8227,2568.7,2568.5,3.8933177]
[1751991621078,0.8227,2568.7,2568.2,0.82159471]
[1751991621079,0.8227,2568.7,2568.4,0.03893474]
[1751991621273,0.8227,2568.7,2568.4,3.93230164]
[1751991621482,0.8227,2568.7,2568.4,0.03893474]
[1751991621791,3.89317464,2568.6,2568.1,3.89390056]
[1751991621998,3.89317464,2568.6,2568.2,0.03893777]
[1751991622494,3.89317464,2568.6,2568.4,0.1944]
[1751991622695,3.89332295,2568.5,2568.4,0.1944]
[1751991622896,5.16832525,2568.5,2568.4,0.1944]
[1751991623190,3.89368104,2568.3,2568.1,0.1944]
[1751991623391,3.93276882,2568.2,2567.7,3.8944091]
[1751991623592,3.89377774,2568.2,2568.0,0.1944]
[1751991624885,3.93269826,2568.3,2568.0,0.1944]
[1751991625291,4.08794684,2568.4,2568.0,0.1944]
[1751991625484,4.12693792,2568.4,2568.0,0.1944]
[1751991625886,3.89364201,2568.3,2568.0,0.1944]
[1751991626501,3.8938246,2568.2,2568.0,0.1944]
[1751991634596,3.89385286,2568.2,2568.0,0.1944]
[1751991635606,3.89392936,2568.1,2568.0,0.1944]
[1751991635830,0.03899108,2568.3,2568.0,0.1944]
[1751991635976,3.93272007,2568.3,2568.0,0.1944]
[1751991636178,0.03899108,2568.3,2568.0,0.1944]
[1751991636783,0.23339108,2568.4,2568.0,0.1944]
[1751991637120,0.8034,2568.5,2567.7,0.03894535]
[1751991637317,0.8034,2568.5,2568.4,3.89347453]
[1751991637477,0.8034,2568.5,2568.3,4.08796394]
[1751991637680,0.8034,2568.5,2568.4,3.89347453]
[1751991637927,0.8175,2568.7,2568.5,3.89321851]
[1751991638129,0.92876388,2568.9,2568.6,3.89317137]
[1751991638625,0.92876388,2568.9,2568.5,3.89325976]
[1751991638819,4.82148483,2568.9,2568.5,3.89325976]
[1751991639119,0.92876388,2568.9,2568.5,3.89325976]
[1751991639476,0.11126388,2568.9,2568.4,0.1944]
[1751991639681,0.11126388,2568.9,2568.7,3.89296506]
[1751991639682,0.0722728,2568.9,2568.7,3.89296506]
[1751991640002,0.0722728,2568.9,2568.8,3.89286826]
[1751991640922,0.0722728,2568.9,2568.7,3.89293562]
[1751991641622,0.0722728,2568.9,2568.8,3.89286826]
[1751991642005,0.0722728,2568.9,2568.7,3.89297693]
[1751991642327,0.777,2568.8,2568.6,4.08749656]
[1751991643619,3.93210412,2568.7,2568.1,6.21776122]
[1751991643783,3.89326486,2568.6,2568.1,3.89383771]
[1751991643984,0.03899108,2568.5,2568.1,3.89383771]
[1751991644183,0.03899108,2568.5,2568.2,3.89376436]
[1751991644397,0.03899108,2568.6,2568.2,3.89376436]
[1751991644712,0.03899108,2568.7,2568.3,3.89350011]
[1751991644901,0.777,2568.8,2568.4,3.89341151]
[1751991645916,0.0722728,2568.9,2568.4,0.03893474]
[1751991646111,0.0722728,2568.9,2568.6,3.89302697]
[1751991646785,0.0722728,2568.9,2568.5,3.89323684]
[1751991647299,0.03899108,2568.8,2568.3,3.89361644]
[1751991647500,3.93186917,2568.8,2568.4,3.89346346]
[1751991647691,4.00405332,2568.9,2568.5,3.89330313]
[1751991647900,0.11126388,2568.9,2568.5,3.89330313]
[1751991648415,4.00398281,2568.9,2568.5,3.89330313]
[1751991649031,0.11126388,2568.9,2568.5,0.77868589]
[1751991649215,0.0722728,2568.9,2568.5,3.89321346]
[1751991649418,3.96505357,2568.9,2568.4,3.89337595]
[1751991649603,0.0722728,2568.9,2568.5,3.893235]
[1751991650419,0.0722728,2568.9,2568.6,3.89316195]
[1751991650623,0.0722728,2568.9,2568.7,3.8930119]
[1751991651093,0.0722728,2568.9,2568.7,3.89294841]
[1751991653619,0.0722728,2568.9,2568.8,0.1944]
[1751991655023,1e-08,2569.1,2569.0,14.6919652]
[1751991655327,1e-08,2569.2,2569.1,14.69181368]
[1751991655625,1e-08,2569.2,2569.1,15.18151549]
[1751991655991,1e-08,2569.8,2569.7,3.89150484]
[1751991656206,1e-08,2569.8,2569.7,25.68565186]
[1751991657502,1e-08,2569.8,2569.7,15.08005532]
[1751991659098,1e-08,2569.8,2569.7,16.81300302]
[1751991659898,1e-08,2569.8,2569.7,15.08005532]
[1751991660398,1e-08,2569.8,2569.7,16.81300302]
[1751991661841,1e-08,2569.8,2569.7,15.08005532]
[1751991664904,1e-08,2569.8,2569.7,15.27445532]
[1751991666213,1e-08,2569.8,2569.7,15.63468512]
[1751991667554,1e-08,2569.8,2569.7,16.18468512]
[1751991669647,0.002,2570.0,2569.9,3.89120199]
[1751991669648,1e-08,2570.0,2569.9,3.89120199]
[1751991669830,1e-08,2570.0,2569.9,29.85098157]
[1751991670018,1e-08,2570.0,2569.9,29.81206956]
[1751991671638,1e-08,2570.0,2569.9,31.54501726]
[1751991671837,1e-08,2570.0,2569.9,29.81206956]
[1751991672543,1e-08,2570.0,2569.9,20.38083076]
[1751991672733,1e-08,2570.0,2569.9,18.65647302]
[1751991673220,1e-08,2570.0,2569.9,19.20647302]
[1751991673741,1e-08,2570.0,2569.9,20.93083076]
[1751991674451,1e-08,2570.0,2569.9,21.29017736]
[1751991676425,1e-08,2570.0,2569.9,20.93083076]
[1751991677754,1e-08,2570.0,2569.9,19.20647302]